bitfinex-derivatives/quotes_SOLF0:USTF0_20250516
["timestamp","ask_amount","ask_price","bid_price","bid_amount"]
[1747361857986,124.62,173.17,173.13,2.11924461]
[1747361858185,124.62,173.17,173.1,62.26]
[1747361858386,124.62,173.17,173.11,2.11914769]
[1747361858686,62.28,173.2,173.12,2.11914769]
[1747361858993,124.54,173.21,173.13,2.11914769]
[1747361859290,124.54,173.21,173.14,4.07534769]
[1747361859487,124.54,173.21,173.15,3.56271417]
[1747361859684,124.54,173.21,173.16,2.11914769]
[1747361859886,124.54,173.21,173.17,2.11914769]
[1747361860087,62.26,173.21,173.18,2.11889347]
[1747361860284,62.26,173.25,173.16,1.8506]
[1747361860485,62.28,173.25,173.17,2.11870236]
[1747361860687,62.28,173.25,173.18,2.11870236]
[1747361860895,62.28,173.25,173.19,2.11870236]
[1747361861089,124.52,173.26,173.2,2.11870236]
[1747361861294,62.26,173.26,173.25,5.7706]
[1747361861990,560.94,173.3,173.27,5.7699]
[1747361862184,62.26,173.29,173.27,5.7699]
[1747361862881,62.26,173.3,173.23,3.30212283]
[1747361863084,124.52,173.3,173.24,1.8716]
[1747361863482,124.52,173.3,173.29,5.7693]
[1747361865099,62.26,173.3,173.29,5.7693]
[1747361866495,62.24,173.34,173.32,5.7681]
[1747361866790,124.46,173.34,173.25,1.44271147]
[1747361866985,124.46,173.34,173.26,3.55757621]
[1747361867191,124.46,173.34,173.33,5.7679]
[1747361867389,124.46,173.34,173.28,2.11486474]
[1747361867587,124.46,173.34,173.33,5.7679]
[1747361867787,124.46,173.34,173.26,63.66271147]
[1747361867788,62.24,173.39,173.29,62.24]
[1747361867988,62.22,173.38,173.3,1.8931]
[1747361868990,62.24,173.39,173.3,1.8931]
[1747361869197,498.78,173.46,173.32,8.62904272]
[1747361869198,62.24,173.43,173.32,8.62904272]
[1747361869397,62.22,173.42,173.33,64.0526]
[1747361869588,62.22,173.42,173.34,1.44183474]
[1747361870084,62.22,173.42,173.33,64.0526]
[1747361870795,62.22,173.42,173.34,2.11148017]
[1747361870989,62.22,173.42,173.33,1.8126]
[1747361871190,62.22,173.42,173.3,1.8931]
[1747361871389,62.22,173.42,173.31,2.11064282]
[1747361871600,62.22,173.42,173.3,1.8931]
[1747361871786,62.22,173.42,173.32,5.7683]
[1747361872097,62.22,173.42,173.3,1.8931]
[1747361872289,5.7657,173.4,173.31,2.10913194]
[1747361872489,62.22,173.39,173.32,2.10913194]
[1747361872795,62.2,173.38,173.35,5.767]
[1747361873104,62.18,173.38,173.35,5.767]
[1747361873684,67.9464,173.38,173.3,1.8931]
[1747361873889,62.18,173.38,173.29,62.24]
[1747361874196,62.18,173.38,173.31,5.7685]
[1747361874493,5.7672,173.36,173.31,5.7685]
[1747361874892,62.22,173.35,173.31,5.7685]
[1747361875097,62.18,173.34,173.31,5.7685]
[1747361875297,62.18,173.34,173.3,5.7689]
[1747361875492,62.18,173.34,173.26,1.8341]
[1747361875901,62.18,173.34,173.3,5.7687]
[1747361876093,62.18,173.34,173.26,1.8341]
[1747361876496,62.18,173.34,173.3,5.7687]
[1747361876795,62.18,173.34,173.26,1.8341]
[1747361877096,62.18,173.34,173.31,5.7685]
[1747361877489,62.18,173.34,173.26,1.8341]
[1747361877689,67.9479,173.34,173.29,5.7691]
[1747361877889,67.9479,173.34,173.26,1.8341]
[1747361878185,67.9479,173.34,173.29,5.769]
[1747361878798,62.18,173.34,173.3,5.7689]
[1747361878997,62.18,173.34,173.26,1.8341]
[1747361879294,62.18,173.34,173.3,5.7687]
[1747361879496,62.18,173.34,173.26,1.8341]
[1747361880193,67.9477,173.34,173.26,1.8341]
[1747361880394,62.18,173.34,173.26,1.8341]
[1747361881699,67.9477,173.34,173.26,1.8341]
[1747361881896,62.18,173.34,173.26,1.8341]
[1747361882199,5.768,173.33,173.29,5.7691]
[1747361882396,62.18,173.34,173.26,1.8341]
[1747361882898,67.9476,173.34,173.26,1.8341]
[1747361883092,62.22,173.35,173.26,1.8341]
[1747361883403,62.14,173.34,173.31,5.7684]
[1747361883597,62.14,173.34,173.26,1.8341]
[1747361884199,5.7682,173.33,173.29,5.769]
[1747361884899,5.7685,173.32,173.28,5.7695]
[1747361885402,5.7688,173.31,173.27,5.7698]
[1747361886304,62.14,173.34,173.25,62.22]
[1747361887003,62.22,173.35,173.25,62.22]
[1747361887200,62.12,173.34,173.25,62.22]
[1747361887505,62.12,173.34,173.32,5.7681]
[1747361887695,62.12,173.34,173.25,62.22]
[1747361888001,62.12,173.34,173.25,124.34]
[1747361888204,62.12,173.34,173.32,5.768]
[1747361888504,62.22,173.35,173.26,1.8648]
[1747361888697,62.22,173.35,173.34,5.7676]
[1747361888899,62.22,173.35,173.26,1.8648]
[1747361890202,62.22,173.35,173.34,5.7676]
[1747361890507,62.12,173.39,173.29,124.24]
[1747361890698,62.12,173.39,173.3,1.844]
[1747361891407,62.12,173.39,173.37,5.7663]
[1747361892898,62.12,173.39,173.33,62.12]
[1747361894105,62.1,173.38,173.31,5.7685]
[1747361894302,62.1,173.38,173.23,63.9105]
[1747361894507,62.1,173.38,173.23,65.8652]
[1747361894709,5.7685,173.32,173.27,5.7697]
[1747361894907,124.2,173.31,173.23,65.8652]
[1747361895610,5.7692,173.3,173.25,5.7705]
[1747361895807,124.2,173.31,173.25,5.7705]
[1747361896112,5.769,173.3,173.25,5.7705]
[1747361896609,124.2,173.31,173.25,5.7705]
[1747361896809,5.769,173.3,173.25,5.7705]
[1747361897011,5.769,173.3,173.26,5.7702]
[1747361898309,129.9687,173.31,173.26,5.7702]
[1747361898511,124.2,173.31,173.27,5.7698]
[1747361898909,129.9689,173.31,173.2,1.8781]
[1747361899103,129.9689,173.31,173.26,5.77]
[1747361899308,124.2,173.31,173.2,1.8781]
[1747361899504,124.2,173.31,173.19,63.9105]
[1747361900814,124.2,173.3,173.2,62.08]
[1747361902206,124.2,173.3,173.27,5.7696]
[1747361902711,129.969,173.3,173.26,5.77]
[1747361903008,124.2,173.3,173.2,124.2]
[1747361903207,5.7693,173.29,173.25,5.7703]
[1747361903406,124.2,173.3,173.2,124.2]
[1747361903815,124.2,173.3,173.26,5.7701]
[1747361905111,124.2,173.3,173.2,124.2]
[1747361906615,124.2,173.3,173.27,5.7697]
[1747361907714,124.2,173.3,173.28,5.7695]
[1747361909809,124.2,173.3,173.29,5.7693]
[1747361910214,62.12,173.3,173.29,5.7693]
[1747361910914,62.12,173.3,173.2,124.2]
[1747361911513,5.7693,173.29,173.25,5.7704]
[1747361911805,62.04,173.28,173.25,5.7704]
[1747361912817,62.04,173.28,173.24,5.7709]
[1747361913111,62.04,173.28,173.19,63.9305]
[1747361913305,62.04,173.28,173.25,5.7704]
[1747361913617,62.04,173.28,173.19,63.9305]
[1747361914617,62.04,173.28,173.25,5.7704]
[1747361914918,62.04,173.28,173.19,63.9305]
[1747361915216,5.77,173.27,173.23,5.7712]
[1747361915418,62.12,173.26,173.23,5.7712]
[1747361916713,62.12,173.26,173.22,5.7716]
[1747361916915,62.12,173.26,173.17,1.9547]
[1747361918019,5.7707,173.25,173.2,5.7721]
[1747361918218,62.02,173.24,173.17,1.9547]
[1747361918613,62.02,173.24,173.21,5.7718]
[1747361919225,62.02,173.24,173.15,62.12]
[1747361919714,5.7719,173.21,173.17,5.7731]
[1747361919921,124.02,173.2,173.17,5.7731]
[1747361921118,129.7923,173.2,173.11,1.9856]
[1747361922322,129.7923,173.2,173.15,5.7737]
[1747361922617,124.02,173.2,173.11,1.9856]
[1747361922819,124.02,173.2,173.12,5.7747]
[1747361923215,5.7736,173.17,173.12,5.7747]
[1747361923416,124.02,173.16,173.12,5.7747]
[1747361923723,129.7937,173.16,173.07,72.62334272]
[1747361924229,124.02,173.16,173.07,10.62334272]
[1747361924416,124.02,173.16,173.07,1.9943]
[1747361924923,124.02,173.16,173.14,5.7743]
[1747361926926,129.7937,173.16,173.1,2.11889946]
[1747361927112,129.7937,173.16,173.08,2.11845709]
[1747361927314,124.02,173.16,173.07,1.9943]
[1747361927519,124.02,173.16,173.08,2.11844236]
[1747361927727,124.02,173.16,173.07,1.9943]
[1747361927920,124.02,173.16,173.08,2.11746648]
[1747361928225,5.7742,173.15,173.07,1.9943]
[1747361928526,5.7742,173.15,173.08,2.11749592]
[1747361928726,5.7742,173.15,173.08,2.11600385]
[1747361928928,5.7742,173.15,173.1,5.7754]
[1747361929724,124.02,173.16,173.08,2.11533923]
[1747361929916,124.02,173.16,173.05,5.40568416]
[1747361930118,124.02,173.16,173.09,5.7756]
[1747361930315,5.7748,173.13,173.05,5.40568416]
[1747361930516,5.7748,173.13,172.85,163.93268942]
[1747361930517,124.02,173.16,172.87,131.14615153]
[1747361930823,10.82055066,173.06,172.8,15.7192273]
[1747361931024,124.0,173.05,172.42,1.8108]
[1747361931224,5.41027533,172.71,172.67,222.50269576]
[1747361931422,5.41027533,172.68,172.33,1.8108]
[1747361931723,11.20377533,172.57,172.55,347.57112186]
[1747361931927,659.36,172.56,172.55,296.88018187]
[1747361932129,664.77027533,172.56,172.55,263.89488187]
[1747361932331,675.98055066,172.56,172.55,234.20008187]
[1747361932531,670.18055066,172.56,172.55,234.20008187]
[1747361932829,675.98055066,172.56,172.45,393.43845461]
[1747361933128,80.4,172.55,172.33,1.8108]
[1747361933330,14.16870128,172.46,172.41,450.35051129]
[1747361933522,673.90870128,172.45,172.41,283.19689278]
[1747361933718,174.72870128,172.44,172.41,207.17056994]
[1747361934130,174.72870128,172.44,172.31,254.20525025]
[1747361934321,80.38,172.43,172.31,274.54426905]
[1747361934522,14.16870128,172.39,172.31,274.54426905]
[1747361934721,160.58,172.38,172.31,250.41875025]
[1747361934923,160.86,172.37,172.31,250.41875025]
[1747361935120,80.2,172.36,172.31,250.41875025]
[1747361935326,14.19138721,172.32,172.31,250.41875025]
[1747361935632,594.03138721,172.32,172.21,3.7617]
[1747361935834,14.19138721,172.25,172.21,24.1255188]
[1747361936030,161.12,172.24,172.21,24.1255188]
[1747361936225,94.50746945,172.23,172.11,2.0041]
[1747361936531,80.3,172.23,172.11,24.1255188]
[1747361936831,14.20746945,172.18,172.02,1.818]
[1747361937027,179.18,172.17,172.02,1.818]
[1747361937227,179.18,172.17,171.98,62.0]
[1747361937626,193.38746945,172.17,171.98,62.0]
[1747361937826,179.18,172.17,171.98,62.0]
[1747361938237,89.58,172.17,171.98,62.0]
[1747361938525,91.2,172.16,171.98,62.0]
[1747361938930,93.32,172.15,171.96,1.9341]
[1747361939133,93.32,172.15,171.96,16.15313565]
[1747361939331,93.32,172.15,171.96,1.9341]
[1747361939522,499.88,172.19,171.96,1.9341]
[1747361939726,188.46,172.18,171.96,1.9341]
[1747361939936,14.21903565,172.17,171.96,1.9341]
[1747361940228,202.93903565,172.17,171.96,1.9341]
[1747361940435,499.88,172.19,172.07,5.81]
[1747361940637,194.4,172.16,171.98,96.9]
[1747361940933,194.4,172.16,171.98,79.47000001]
[1747361941132,499.88,172.19,171.98,79.47000001]
[1747361941432,14.21903565,172.17,171.98,79.47000001]
[1747361941734,196.3,172.18,172.08,5.8097]
[1747361941929,196.3,172.18,171.98,79.47000001]
[1747361941930,196.3,172.18,171.99,2.0027]
[1747361942129,499.88,172.19,171.99,2.0027]
[1747361942330,14.21903565,172.17,171.99,2.0027]
[1747361942526,14.21903565,172.09,172.04,5.8109]
[1747361942836,100.04,172.08,171.9,114.35903565]
[1747361943031,14.21903565,172.17,171.9,114.35903565]
[1747361943237,14.21903565,172.12,171.9,114.35903565]
[1747361943534,100.16,172.11,171.94,14.21903565]
[1747361943830,100.06,172.12,171.94,14.21903565]
[1747361944535,500.98,172.25,171.94,14.21903565]
[1747361944736,100.2,172.24,171.98,14.21903565]
[1747361945034,14.21903565,172.35,172.06,14.21903565]
[1747361945333,100.2,172.29,172.07,100.2]
[1747361945536,501.36,172.34,172.24,5.8042]
[1747361945835,101.16,172.32,172.14,100.2]
[1747361946031,101.16,172.32,172.15,100.2]
[1747361946422,14.21903565,172.44,172.15,100.2]
[1747361946626,14.21903565,172.34,172.15,100.2]
[1747361946823,102.3,172.33,172.15,100.2]
[1747361947029,14.21903565,172.3,172.24,5.8043]
[1747361947323,501.36,172.42,172.22,100.22]
[1747361947527,102.12,172.37,172.23,100.22]
[1747361947728,102.12,172.37,172.24,100.22]
[1747361948127,501.36,172.42,172.38,5.7996]
[1747361948331,501.36,172.42,172.25,100.22]
[1747361948531,101.92,172.41,172.25,100.22]
[1747361948732,14.18187027,172.4,172.2,100.22]
[1747361948934,14.18187027,172.35,172.2,100.22]
[1747361949231,101.7,172.34,172.2,100.22]
[1747361949835,101.7,172.34,172.32,5.8016]
[1747361950338,101.7,172.34,172.21,100.24]
[1747361950536,501.36,172.42,172.21,100.24]
[1747361950734,14.18187027,172.38,172.21,100.24]
[1747361950943,14.18187027,172.38,172.33,5.8014]
[1747361951136,14.18187027,172.38,172.21,100.24]
[1747361951337,14.18187027,172.38,172.21,37.25684182]
[1747361951634,201.44,172.41,172.21,37.25684182]
[1747361951837,101.48,172.4,172.22,14.01093948]
[1747361952136,101.48,172.4,172.38,5.7997]
[1747361952938,101.3,172.39,172.27,100.24]
[1747361953139,101.3,172.39,172.27,42.12811287]
[1747361953542,13.30773746,172.38,172.24,3.7771]
[1747361955042,13.30773746,172.38,172.33,5.8014]
[1747361955237,101.3,172.39,172.18,13.30773746]
[1747361955444,101.3,172.39,172.34,5.801]
[1747361956038,101.3,172.39,172.35,5.8007]
[1747361956239,101.3,172.39,172.22,100.22]
[1747361956538,14.18159838,172.38,172.32,5.8017]
[1747361956743,14.18159838,172.38,172.22,100.22]
[1747361956941,101.3,172.39,172.22,100.22]
[1747361957340,101.3,172.39,172.22,18.00233462]
[1747361957547,200.76,172.38,172.22,18.00233462]
[1747361957851,100.46,172.37,172.24,13.29826929]
[1747361958241,100.46,172.37,172.25,1.9527]
[1747361958454,501.36,172.42,172.25,1.9527]
[1747361958649,201.0,172.41,172.25,1.9527]
[1747361959054,215.18238934,172.41,172.25,1.9527]
[1747361959262,220.98108934,172.41,172.25,1.9527]
[1747361959457,13.30653654,172.39,172.22,100.22]
[1747361959658,201.0,172.41,172.24,14.1782803]
[1747361959856,201.0,172.41,172.24,8.3201803]
[1747361960157,200.54,172.4,172.24,8.3201803]
[1747361960459,501.36,172.42,172.24,8.3201803]
[1747361960661,200.5,172.41,172.24,8.3201803]
[1747361960861,501.36,172.42,172.24,8.3201803]
[1747361961058,100.06,172.41,172.39,5.7993]
[1747361961260,100.06,172.41,172.22,100.22]
[1747361961565,601.58,172.42,172.25,14.1811353]
[1747361961768,100.9,172.41,172.25,115.0011353]
[1747361961962,100.82,172.41,172.29,14.1811353]
[1747361962262,100.82,172.41,172.3,102.059]
[1747361962967,100.82,172.41,172.4,5.799]
[1747361963168,100.38,172.41,172.3,102.059]
[1747361963365,232.244753,172.48,172.3,102.059]
[1747361963561,100.22,172.46,172.3,102.059]
[1747361963760,232.244753,172.48,172.3,102.059]
[1747361964065,200.34,172.47,172.31,1.9283]
[1747361964965,200.34,172.47,172.43,5.7977]
[1747361965270,14.16769639,172.46,172.31,1.9283]
[1747361965467,14.16769639,172.46,172.3,0.80174911]
[1747361965667,199.8,172.45,172.3,0.80174911]
[1747361965971,199.8,172.45,172.29,100.2]
[1747361966669,199.8,172.45,172.29,98.08001135]
[1747361966971,13.3014734,172.42,172.23,111.8091]
[1747361967267,199.96,172.41,172.23,111.8091]
[1747361967658,99.62,172.4,172.26,13.3014734]
[1747361967860,13.3014734,172.47,172.27,111.1662]
[1747361968059,199.76,172.46,172.27,111.1662]
[1747361968262,199.76,172.46,172.41,5.7984]
[1747361968560,199.76,172.46,172.27,111.1662]
[1747361968561,199.76,172.46,172.3,100.2]
[1747361968767,199.76,172.46,172.3,91.36934284]
[1747361969871,13.3014734,172.47,172.3,104.67081624]
[1747361970069,199.1,172.46,172.31,113.5014734]
[1747361970463,199.1,172.46,172.42,5.7981]
[1747361970658,199.1,172.46,172.31,100.2]
[1747361970863,34.27664141,172.45,172.31,100.2]
[1747361971058,34.27664141,172.45,172.28,11.6057]
[1747361971267,13.3014734,172.43,172.26,100.2]
[1747361971467,13.3014734,172.43,172.38,5.7996]
[1747361971670,198.78,172.42,172.26,100.2]
[1747361971970,198.78,172.42,172.37,5.7999]
[1747361972173,2.0067,172.41,172.37,5.7999]
[1747361972977,2.0067,172.41,172.26,2.78154805]
[1747361973267,2.0067,172.41,172.36,5.8001]
[1747361973469,5.7998,172.38,172.23,98.28]
[1747361973668,13.30726108,172.38,172.23,98.28]
[1747361973869,82.60670528,172.4,172.23,98.28]
[1747361974774,82.60670528,172.4,172.22,98.28]
[1747361974974,82.60670528,172.4,172.23,11.6091]
[1747361975469,170.66434998,172.29,172.28,5.803]
[1747361975677,137.37494998,172.29,172.22,98.28]
[1747361975974,123.42254998,172.29,172.22,111.5802712]
[1747361976170,68.13804998,172.29,172.22,111.5802712]
[1747361976778,68.13804998,172.29,172.28,5.803]
[1747361976967,54.10454998,172.29,172.28,5.803]
[1747361977163,40.74924998,172.29,172.28,5.803]
[1747361977368,82.60670528,172.4,172.28,5.803]
[1747361977369,96.9,172.37,172.28,5.8]
[1747361977576,96.9,172.37,172.22,111.5802712]
[1747361978269,96.9,172.37,172.36,5.8004]
[1747361978777,178.98670528,172.4,172.39,5.7994]
[1747361978967,178.98670528,172.4,172.28,98.3]
[1747361979372,178.98670528,172.4,172.39,5.7994]
[1747361981178,96.38,172.4,172.39,5.7994]
[1747361983676,34.27664141,172.45,172.29,11.6053]
[1747361983864,190.0,172.44,172.29,11.6053]
[1747361984777,34.27664141,172.45,172.29,11.6053]
[1747361984972,34.27664141,172.45,172.42,5.7983]
[1747361985173,189.62,172.44,172.42,5.7983]
[1747361985679,34.27664141,172.45,172.43,5.7978]
[1747361985976,34.27664141,172.45,172.3,11.6042]
[1747361985977,189.36,172.44,172.3,11.6042]
[1747361986480,94.14,172.43,172.29,14.16956806]
[1747361986783,94.14,172.43,172.42,5.7984]
[1747361987877,94.14,172.43,172.32,11.6035]
[1747361987878,188.78,172.44,172.43,5.798]
[1747361988682,34.27664141,172.45,172.44,5.7977]
[1747361989379,25.56374141,172.45,172.44,5.7977]
[1747361989580,16.77184141,172.45,172.44,5.7977]
[1747361990083,4.141e-05,172.45,172.44,5.7977]
[1747361990676,4.141e-05,172.45,172.34,95.04]
[1747361990879,93.2,172.44,172.31,11.6037]
[1747361991282,93.2,172.44,172.29,95.02]
[1747361991490,8.17433941,172.42,172.29,95.02]
[1747361991783,8.17433941,172.42,172.39,5.7993]
[1747361991977,8.17433941,172.42,172.29,95.02]
[1747361993282,93.2,172.44,172.37,5.7999]
[1747361993587,92.54,172.43,172.4,5.7987]
[1747361993980,92.54,172.43,172.29,95.02]
[1747361994282,92.54,172.43,172.38,5.7996]
[1747361994481,92.54,172.43,172.29,95.02]
[1747361995882,92.1,172.43,172.31,13.28902481]
[1747361996080,4.141e-05,172.45,172.31,105.28902481]
[1747361996284,91.92004141,172.45,172.44,5.7977]
[1747361996872,91.92004141,172.45,172.43,5.798]
[1747361997079,91.92004141,172.45,172.31,105.28902481]
[1747361997588,91.92,172.45,172.42,5.7982]
[1747361998182,91.92,172.45,172.31,105.28902481]
[1747361998386,1.8616,172.49,172.32,11.6035]
[1747361998585,91.36,172.46,172.35,13.28902481]
[1747361998885,91.36,172.46,172.45,5.7973]
[1747361999086,91.12,172.47,172.36,92.0]
[1747361999585,91.12,172.47,172.46,5.797]
[1747362000480,1.8616,172.49,172.36,93.8587]
[1747362000676,182.82,172.47,172.36,92.0]
[1747362001683,182.82,172.47,172.42,5.7982]
[1747362002076,182.82,172.47,172.4,5.799]
[1747362002281,182.82,172.47,172.31,91.98]
[1747362003289,5.7984,172.42,172.31,91.98]
[1747362003586,182.18,172.41,172.31,91.98]
[1747362003786,91.98,172.4,172.31,91.98]
[1747362004086,91.98,172.4,172.27,1.9817]
[1747362004290,1.8369,172.39,172.26,92.0]
[1747362004487,5.8003,172.37,172.26,92.0]
[1747362004684,1.8369,172.39,172.26,92.0]
[1747362004882,181.92,172.38,172.26,92.0]
[1747362005082,89.92,172.37,172.26,92.0]
[1747362005477,95.7201,172.37,172.26,92.0]
[1747362005687,89.92,172.37,172.26,92.0]
[1747362006083,89.92,172.37,172.32,5.8017]
[1747362006690,89.92,172.37,172.26,92.0]
[1747362006892,1.8369,172.39,172.26,92.0]
[1747362007192,181.6,172.38,172.35,5.8004]
[1747362007586,181.6,172.38,172.26,92.0]
[1747362007790,1.8369,172.39,172.26,92.0]
[1747362007979,89.44,172.38,172.26,92.0]
[1747362010291,89.44,172.38,172.36,5.8]
[1747362010591,88.8,172.38,172.36,5.8]
[1747362011791,88.8,172.38,172.26,92.0]
[1747362012093,90.6482,172.38,172.26,92.0]
[1747362012293,5.8006,172.36,172.26,92.0]
[1747362013296,5.8006,172.36,172.32,5.8016]
[1747362014190,1.8111,172.37,172.21,98.99653697]
[1747362014396,1.8111,172.37,172.21,90.8084]
[1747362014598,5.8018,172.32,172.21,90.8084]
[1747362014792,176.76,172.31,172.21,90.8084]
[1747362015184,176.76,172.31,172.28,5.8029]
[1747362015392,176.76,172.31,172.21,90.8084]
[1747362015796,87.58,172.32,172.21,90.8084]
[1747362015996,87.58,172.32,172.18,61.21559172]
[1747362016200,8.19800114,172.3,172.09,3.8728]
[1747362016396,8.19800114,172.34,172.12,8.19800114]
[1747362016595,176.32,172.33,172.13,88.9]
[1747362017296,5.8034,172.27,172.2,5.8056]
[1747362017498,87.26,172.26,172.13,88.9]
[1747362017793,92.8714,172.26,172.13,88.9]
[1747362017984,101.06940114,172.26,172.09,5.7984]
[1747362018390,5.8074,172.15,172.02,97.09800114]
[1747362018589,8.19800114,172.22,172.03,5.5531]
[1747362018795,176.28,172.21,172.06,8.19800114]
[1747362019003,87.36,172.2,172.06,8.19800114]
[1747362019199,87.36,172.2,172.06,97.09800114]
[1747362019497,13.80940114,172.26,172.05,87.36]
[1747362019498,8.19800114,172.19,172.05,1.0109373]
[1747362019700,176.22,172.18,172.05,1.0109373]
[1747362019901,5.8083,172.13,172.06,5.8102]
[1747362020103,1.8139,172.17,172.06,5.8102]
[1747362020293,1.8139,172.17,172.03,8.19800114]
[1747362020496,5.8074,172.15,172.03,8.19800114]
[1747362020792,176.12,172.16,172.03,8.19800114]
[1747362021306,176.12,172.16,172.03,8.20502803]
[1747362021596,176.12,172.16,172.03,13.33320173]
[1747362022003,5.8078,172.14,172.03,13.33320173]
[1747362022205,176.12,172.16,172.03,13.33320173]
[1747362023004,5.8078,172.14,172.03,13.33320173]
[1747362023194,1.8139,172.17,172.03,13.33320173]
[1747362023395,13.33320173,172.23,172.03,13.33320173]
[1747362023597,177.2367,172.22,172.07,13.33320173]
[1747362023792,177.2367,172.22,172.08,88.96]
[1747362024102,5.807,172.17,172.11,5.8085]
[1747362024305,86.3,172.16,172.08,88.96]
[1747362024508,86.3,172.16,172.01,87.59105478]
[1747362024799,514.99320173,172.15,171.98,3.7273]
[1747362025002,518.74050173,172.15,171.98,3.7273]
[1747362025206,5.8109,172.05,172.0,5.8125]
[1747362025403,86.52,172.05,172.0,5.8125]
[1747362025605,518.74050173,172.15,171.98,3.7273]
[1747362026003,175.4,172.14,171.98,3.7273]
[1747362026405,1.8183,172.13,171.98,3.7273]
[1747362026906,1.8183,172.13,171.98,89.9673]
[1747362026907,175.2,172.12,171.98,89.9673]
[1747362027206,5.8089,172.11,171.98,89.9673]
[1747362027394,86.24,172.12,171.98,89.9673]
[1747362027601,86.04,172.11,172.0,13.33320173]
[1747362027800,1.8183,172.13,172.08,5.8096]
[1747362028004,3.7473,172.15,172.03,86.02]
[1747362028209,85.94,172.15,172.04,15.20280173]
[1747362028598,185.34535255,172.14,171.92,1.01148089]
[1747362028909,603.1450315,172.13,171.91,13.3474315]
[1747362029298,5.8113,172.04,171.96,5.8138]
[1747362029500,85.82,172.03,171.96,5.8138]
[1747362029709,85.82,172.03,171.91,99.1674315]
[1747362029900,85.82,172.03,171.94,5.8143]
[1747362030102,85.82,172.03,171.9,86.04]
[1747362030510,85.82,172.03,171.92,5.815]
[1747362030812,2.0085,172.02,171.92,5.815]
[1747362031005,2.0085,172.02,171.93,5.8148]
[1747362031197,2.0085,172.02,171.9,86.04]
[1747362032308,5.8132,171.99,171.93,5.8148]
[1747362032503,2.0085,172.02,171.9,86.04]
[1747362032504,85.24,171.98,171.9,86.04]
[1747362032901,85.24,171.98,171.87,5.7395]
[1747362033103,5.8146,171.94,171.88,5.8165]
[1747362033304,85.24,171.98,171.86,86.08]
[1747362033503,91.0535,171.98,171.92,5.8151]
[1747362033707,85.24,171.98,171.92,5.8151]
[1747362034006,85.24,171.98,171.93,5.8146]
[1747362034209,84.9,171.97,171.86,86.08]
[1747362034408,84.9,171.97,171.87,1.9168]
[1747362034608,84.9,171.97,171.86,86.08]
[1747362035112,84.78,171.99,171.95,5.8142]
[1747362035605,1.9581,172.01,171.92,86.1]
[1747362035809,13.3474315,172.09,171.92,86.1]
[1747362036012,3.8627,172.08,171.93,3.9581]
[1747362036202,84.6,172.07,171.94,13.3474315]
[1747362036407,84.6,172.07,171.94,99.8642315]
[1747362036907,84.6,172.07,171.94,99.7642315]
[1747362038901,90.4102,172.07,172.01,5.8119]
[1747362039310,84.6,172.07,172.01,5.8119]
[1747362039611,90.4102,172.07,172.01,5.8119]
[1747362040918,90.4102,172.07,172.02,5.8118]